bitfinex/quotes_ETHUSD_20220308
["timestamp","ask_amount","ask_price","bid_price","bid_amount"]
[1646771459731,0.9754,2565.4,2564.9,0.71612607]
[1646771459933,0.9754,2565.4,2565.2,0.00384129]
[1646771460134,0.06616367,2565.6,2565.2,0.00384129]
[1646771460733,1.9505507,2565.5,2565.2,0.00384129]
[1646771460933,1.9505507,2565.5,2564.9,0.006786]
[1646771460934,1.9505507,2565.5,2565.0,0.70934007]
[1646771461185,1.9505507,2565.5,2565.2,0.00384137]
[1646771461981,1.9505507,2565.5,2564.9,0.71612607]
[1646771462183,3.5,2565.4,2564.9,0.71612607]
[1646771462383,1.9505507,2565.5,2565.2,0.00384133]
[1646771462584,15.3,2565.4,2565.2,0.00384133]
[1646771462783,16.3,2565.3,2565.2,0.00384133]
[1646771462984,12.7756625,2565.2,2564.9,0.006786]
[1646771463186,16.27567,2565.1,2564.9,0.006786]
[1646771463384,13.66288104,2565.1,2564.9,0.006786]
[1646771463584,1.0,2565.0,2564.9,0.006786]
[1646771464285,12.8,2565.0,2564.9,0.006786]
[1646771464484,4.5,2564.9,2564.8,0.0193123]
[1646771464829,19.8,2564.9,2564.8,0.0328843]
[1646771465029,3.9274,2564.8,2564.6,0.0192597]
[1646771465430,0.9757331,2564.7,2564.6,0.0192597]
[1646771466037,1.9758,2564.8,2564.6,0.0192597]
[1646771466232,1.9758,2564.8,2564.6,0.72859977]
[1646771466233,1.0,2564.8,2564.6,0.72859977]
[1646771467135,3.9017498,2565.3,2564.6,0.72859977]
[1646771467136,1.95084,2565.3,2564.6,0.73243721]
[1646771467334,1.0,2565.2,2564.6,0.73243721]
[1646771467533,1.97535,2565.2,2564.6,0.73243721]
[1646771467734,0.97535,2565.2,2564.6,0.73243721]
[1646771468040,0.97535,2565.2,2564.7,0.70934007]
[1646771468440,3.5,2565.1,2564.8,0.0038373]
[1646771469099,1.0,2565.0,2564.8,0.0038373]
[1646771469294,1.0,2565.0,2564.6,0.72859977]
[1646771469295,2.9269258,2564.9,2564.6,0.72859977]
[1646771469498,6.4269258,2564.9,2564.8,0.00383727]
[1646771470298,4.0,2564.8,2564.6,0.0192597]
[1646771470498,6.4269258,2564.9,2564.6,0.0192597]
[1646771470698,2.9269258,2564.9,2564.7,0.00383734]
[1646771470899,0.97566,2564.9,2564.7,0.00383734]
[1646771471105,1.0,2565.0,2564.7,0.00383734]
[1646771471301,9.23689,2565.4,2564.7,0.00383734]
[1646771471302,5.73689,2565.4,2564.7,0.00383734]
[1646771471601,5.73689,2565.4,2564.7,0.71317741]
[1646771471602,2.81,2565.4,2564.7,0.71317741]
[1646771471804,3.39086238,2565.7,2564.7,0.71317741]
[1646771472001,0.70500391,2565.8,2564.8,0.70934007]
[1646771472201,3.89163564,2565.9,2564.8,0.70934007]
[1646771472202,4.59280391,2565.9,2564.8,0.70934007]
[1646771472423,4.59280391,2565.9,2564.7,0.00288133]
[1646771472424,4.47509,2565.9,2564.9,1.55875908]
[1646771472621,4.47509,2565.9,2565.0,0.97512]
[1646771473221,0.00341791,2565.5,2565.0,0.97512]
[1646771474025,1.0,2565.6,2565.0,0.97512]
[1646771474527,0.00341801,2565.4,2565.3,0.65158898]
[1646771475127,0.00341801,2565.4,2565.3,1.68705561]
[1646771475329,0.54865319,2565.4,2565.3,2.66214561]
[1646771475526,0.00354454,2565.5,2565.3,2.66214561]
[1646771475727,0.00354454,2565.5,2565.4,1.03546663]
[1646771476477,2.65517391,2566.2,2565.4,1.03546663]
[1646771476679,0.54868112,2566.1,2565.5,0.975]
[1646771476880,0.00354187,2565.6,2565.3,0.65158898]
[1646771477083,0.00354187,2565.6,2565.4,1.03528013]
[1646771477478,0.00354187,2565.6,2565.5,1.03528013]
[1646771477686,0.54868112,2565.8,2565.2,1.03528013]
[1646771477881,0.54868112,2565.8,2565.3,1.03528013]
[1646771477882,3.5,2565.7,2565.3,1.03528013]
[1646771478083,0.54868112,2565.8,2565.4,1.03528013]
[1646771478084,1.52743296,2565.6,2565.4,1.03528013]
[1646771478281,0.54868112,2565.5,2564.9,0.70934007]
[1646771478884,0.54868112,2565.5,2564.9,1.74468334]
[1646771479082,0.00342509,2565.4,2564.9,1.74468334]
[1646771479482,0.00342509,2565.4,2564.9,2.71993334]
[1646771479682,0.00342509,2565.4,2565.0,1.03534327]
[1646771480144,0.0189334,2565.4,2565.0,1.74468334]
[1646771480347,0.02235846,2565.4,2565.0,1.74468334]
[1646771480744,0.02235846,2565.4,2565.1,1.03534327]
[1646771480947,0.54848758,2565.3,2565.2,1.03534327]
[1646771481352,0.54848758,2565.3,2564.6,0.72859977]
[1646771481353,10.76465673,2565.2,2564.6,0.72859977]
[1646771481545,3.5,2565.1,2564.6,0.72859977]
[1646771481745,1.9755015,2565.0,2564.7,0.00343024]
[1646771481947,2.77573563,2565.0,2564.7,0.00343024]
[1646771482345,1.95114,2564.9,2564.7,0.00343024]
[1646771482745,3.9023695,2564.9,2564.6,0.0192597]
[1646771482945,2.20164676,2564.9,2564.6,0.0192597]
[1646771486285,2.20164676,2564.9,2564.6,0.02297283]
[1646771487327,2.20164676,2564.9,2564.6,0.0192597]
[1646771487531,2.20164676,2564.9,2564.6,0.02297283]
[1646771487733,0.97556,2564.8,2564.6,0.02297283]
[1646771488334,1.0,2565.0,2564.6,0.02297283]
[1646771488536,1.0,2565.0,2564.6,0.0192597]
[1646771488732,1.0,2565.0,2564.6,0.02277121]
[1646771489138,0.03782251,2564.8,2564.6,0.02277121]
[1646771489335,0.03782251,2564.8,2564.7,3.8558]
[1646771489537,0.03782251,2564.8,2564.7,0.8558]
[1646771489934,0.00351041,2565.4,2564.7,0.8558]
[1646771490235,0.00351041,2565.4,2565.0,1.75237778]
[1646771490536,0.00351041,2565.4,2565.2,0.3878]
[1646771490735,0.00351041,2565.4,2565.2,0.8558]
[1646771490936,4.20500391,2566.2,2565.2,0.8558]
[1646771491180,0.70500391,2566.2,2565.4,0.66587505]
[1646771491479,0.97501,2566.1,2565.4,0.66587505]
[1646771491884,0.70500391,2566.3,2565.9,3.0]
[1646771492083,1.0,2566.7,2566.0,4.3558]
[1646771492084,0.70500391,2566.5,2566.0,4.3558]
[1646771492478,0.70500391,2566.5,2566.0,5.3558]
[1646771492680,0.70500391,2566.6,2566.0,1.8558]
[1646771492878,0.70500391,2566.6,2566.4,0.3878]
[1646771493080,0.70500391,2566.6,2566.4,0.8558]
[1646771493281,0.70500391,2566.7,2566.6,0.3878]
[1646771493481,2.00705602,2566.9,2566.6,0.8558]
[1646771493482,0.70500391,2566.8,2566.6,0.8558]
[1646771493881,0.70500391,2566.8,2566.7,1.1]
[1646771494582,0.70739947,2566.8,2566.7,1.1]
[1646771496626,0.70739947,2566.8,2566.6,1.1]
[1646771496830,0.70708651,2566.7,2566.6,1.1]
[1646771497429,2.25705602,2566.9,2566.6,1.1]
[1646771497626,0.70709806,2566.7,2566.6,1.1]
[1646771501384,0.58520413,2566.7,2566.6,1.1]
[1646771501986,1.2961298,2566.8,2566.6,1.1]
[1646771502183,0.58520413,2566.7,2566.6,1.1]
[1646771503125,0.58520413,2566.7,2566.5,0.37473367]
[1646771503525,0.58520413,2566.6,2566.5,0.37473367]
[1646771505332,0.58520413,2566.6,2566.2,1.94917]
[1646771505632,0.58520413,2566.5,2566.2,1.94917]
[1646771505831,0.00338576,2566.7,2566.2,1.94917]
[1646771505832,0.58520413,2566.4,2566.2,1.94917]
[1646771506089,0.58520413,2566.3,2566.2,1.94917]
[1646771508382,0.00340088,2566.4,2566.2,2.80497]
[1646771508582,0.00340088,2566.4,2566.3,0.3878]
[1646771508782,0.00340088,2566.4,2566.3,0.8558]
[1646771508983,0.70709806,2566.9,2566.7,0.80639655]
[1646771509283,0.95709806,2567.0,2566.6,2.33659]
[1646771509687,0.70709806,2567.0,2566.7,0.9744]
[1646771509931,0.70709806,2567.0,2566.7,1.8302]
[1646771510528,0.71052277,2567.0,2566.7,1.8302]
[1646771510930,0.71052277,2567.0,2566.7,1.4424]
[1646771511330,0.70709806,2567.0,2566.7,1.4424]
[1646771511529,0.70709806,2567.0,2566.7,1.7424]
[1646771511530,0.71052146,2567.0,2566.7,1.7424]
[1646771511732,0.0034234,2567.0,2566.8,3.5]
[1646771511929,0.0034234,2567.0,2566.9,0.468]
[1646771512133,0.0034234,2567.0,2566.7,1.9622]
[1646771512334,0.70709806,2567.4,2567.0,6.47415]
[1646771512531,1.32905602,2567.7,2567.0,6.47415]
[1646771512532,0.70709806,2567.5,2567.0,0.97415]
[1646771512730,0.0034209,2567.1,2567.0,0.97415]
[1646771513794,0.93925602,2567.6,2567.0,0.97415]
[1646771513795,0.70709806,2567.4,2567.0,0.97415]
[1646771513994,0.60709806,2567.4,2567.0,0.97415]
[1646771516399,0.00382723,2567.3,2567.0,0.97415]
[1646771517201,0.00382723,2567.3,2567.0,1.36195]
[1646771517431,0.93925602,2567.8,2567.1,4.1558]
[1646771517637,0.00382726,2567.3,2567.2,1.94781]
[1646771517834,0.93925602,2567.9,2567.3,5.5]
[1646771518034,0.93925602,2567.9,2567.6,0.74347809]
[1646771519035,0.93925602,2567.9,2567.6,1.71734809]
[1646771519234,0.93925602,2567.9,2567.6,0.97387]
[1646771520238,1.66518439,2568.2,2567.6,1.76236864]
[1646771520438,0.93878056,2568.1,2567.9,3.0]
[1646771520636,0.93878056,2568.2,2567.9,0.97378]
[1646771520836,0.93878056,2568.2,2567.9,3.04178]
[1646771521080,0.93878056,2568.4,2567.9,2.04178]
[1646771521289,0.00202004,2568.1,2567.9,3.04178]
[1646771521488,0.00202004,2568.1,2568.0,0.67824163]
[1646771522086,1.18878056,2568.7,2568.0,0.67824163]
[1646771522487,0.00202004,2568.2,2568.0,0.67824163]
[1646771523087,0.00202004,2568.2,2567.9,2.71174299]
[1646771523287,0.25,2568.7,2567.9,2.41174299]
[1646771523487,0.25,2568.7,2567.9,1.41174299]
[1646771523787,0.25,2568.7,2567.9,0.468]
[1646771523990,0.25,2568.7,2567.7,0.00119795]
[1646771523991,0.70270012,2568.5,2567.7,0.00119795]
[1646771524187,0.70270012,2568.5,2567.5,3.82559795]
[1646771524387,3.5,2568.4,2567.5,2.38359795]
[1646771524587,3.5,2568.4,2567.3,3.6151]
[1646771524588,1.09050012,2568.4,2567.3,3.6151]
[1646771524841,1.89014408,2568.1,2567.2,0.00119795]
[1646771525029,3.8878,2568.0,2566.9,0.00119795]
[1646771525229,0.3878,2568.0,2566.7,0.46919795]
[1646771525531,0.25,2567.9,2566.7,0.468]
[1646771525830,0.25,2567.9,2567.0,3.0]
[1646771526132,0.00382935,2567.5,2567.0,15.6558]
[1646771526332,0.00382935,2567.5,2567.0,16.9558]
[1646771526930,0.00382935,2567.5,2567.4,0.85044693]
[1646771527132,0.00382935,2567.5,2567.4,1.31844693]
[1646771527333,0.70270012,2568.4,2567.4,1.61844693]
[1646771527533,0.9741,2568.3,2567.5,0.3878]
[1646771527932,0.9741,2568.3,2567.5,0.6878]
[1646771528332,0.40495849,2568.2,2567.5,0.6878]
[1646771528582,0.00370262,2568.0,2567.6,14.8]
[1646771528785,0.00370262,2568.0,2567.7,12.268]
[1646771528983,0.40866111,2568.0,2567.7,12.268]
[1646771529182,0.39884493,2567.9,2567.7,13.568]
[1646771529382,0.95270012,2568.5,2567.7,13.568]
[1646771529582,0.95270012,2568.5,2567.8,12.1878]
[1646771529784,0.95270012,2568.5,2568.0,12.1878]
[1646771529986,0.95270012,2568.5,2568.1,0.468]
[1646771530383,0.95270012,2568.5,2568.1,1.24318723]
[1646771530586,0.95270012,2568.5,2568.1,0.468]
[1646771530985,0.00169619,2568.4,2567.7,0.468]
[1646771531789,0.90791376,2568.3,2567.7,0.468]
[1646771532190,0.00338546,2568.2,2567.7,0.468]
[1646771532637,0.00338546,2568.2,2567.3,0.00119795]
[1646771532834,0.00338546,2568.2,2567.2,2.4146]
[1646771533033,5.49841388,2568.3,2567.2,2.4146]
[1646771533437,0.8165728,2567.8,2567.2,2.4146]
[1646771533635,0.25,2567.8,2566.8,12.78901655]
[1646771533835,0.25,2567.8,2567.0,13.7481]
[1646771534035,0.25,2567.8,2567.0,14.2161]
[1646771534636,0.25,2567.8,2567.2,1.0]
[1646771534837,0.25,2567.8,2567.3,15.268]
[1646771535038,0.25,2567.8,2567.4,13.74797]
[1646771535240,0.25,2567.8,2567.4,14.21597]
[1646771535438,0.25,2567.8,2567.4,15.21597]
[1646771535637,0.70270012,2568.3,2567.6,12.1878]
[1646771535638,0.25,2568.2,2567.6,12.1878]
[1646771535838,0.25,2568.2,2567.9,0.70387758]
[1646771536081,0.25,2568.2,2567.9,1.17187758]
[1646771536484,0.70270012,2568.4,2568.1,3.0]
[1646771536784,0.70270012,2568.6,2568.4,12.1]
[1646771536984,1.41518439,2569.1,2568.4,12.1]
[1646771536986,0.70270012,2568.8,2568.6,11.8]
[1646771537283,0.70270012,2568.9,2568.7,0.468]
[1646771537482,0.93878056,2569.1,2568.7,0.768]
[1646771537483,0.70270012,2569.1,2568.7,0.768]
[1646771537682,0.70270012,2569.2,2568.7,0.768]
[1646771537882,0.70270012,2569.2,2568.7,0.468]
[1646771538083,0.00353024,2568.9,2568.7,0.468]
[1646771539083,0.70270012,2569.2,2568.7,0.468]
[1646771539084,0.70270012,2569.2,2568.7,2.41456]
[1646771539284,0.00361091,2568.9,2568.7,2.41456]
[1646771539683,0.00361091,2568.9,2568.7,14.21456]
[1646771540129,0.00361091,2568.9,2568.7,15.21456]
[1646771540533,0.00361091,2568.9,2568.7,3.41456]
[1646771540733,0.00361091,2568.9,2568.7,0.468]
[1646771540935,0.00361091,2568.9,2568.2,1.00119795]
[1646771541135,0.00361091,2568.9,2568.2,1.0]
[1646771541441,0.70270012,2569.2,2568.3,0.468]
[1646771541635,0.70270012,2569.2,2568.4,0.468]
[1646771541837,0.00361106,2568.7,2568.4,0.468]
[1646771542635,0.00361106,2568.7,2568.0,0.97379]
[1646771542636,4.59050012,2569.1,2568.0,0.97379]
[1646771543036,4.59050012,2569.1,2567.8,1.94756]
[1646771543037,0.37126366,2567.9,2567.8,1.94756]
[1646771543678,0.37126366,2567.9,2567.6,1.94774]
[1646771543878,0.37126366,2567.9,2567.5,0.468]
[1646771544081,0.37126366,2567.9,2567.5,0.768]
[1646771544279,0.37126366,2567.9,2567.5,1.74195]
[1646771544679,0.37126366,2567.9,2567.5,1.44195]
[1646771544878,0.37126366,2567.9,2567.5,0.468]
[1646771545681,0.37126366,2567.9,2567.5,13.24195]
[1646771545882,0.37126366,2567.9,2567.6,11.8]
[1646771546079,0.37126366,2567.9,2567.7,0.468]
[1646771546687,0.37126366,2567.9,2567.7,0.768]
[1646771547187,0.37126366,2567.9,2567.7,0.468]
[1646771548428,0.37126366,2567.9,2567.2,0.00108451]
[1646771548634,3.5,2567.8,2567.0,0.00108451]
[1646771548829,3.5,2567.8,2566.8,0.46908451]
[1646771549128,3.5,2567.8,2566.9,1.28710081]
[1646771549334,0.28667723,2567.7,2566.9,1.28710081]
[1646771549530,0.74288912,2567.5,2566.8,1.45645438]
[1646771549727,0.74288912,2567.5,2566.9,1.28728006]
[1646771550327,3.8878,2567.8,2566.9,1.28728006]
[1646771550529,0.26535087,2567.7,2566.9,1.28728006]
[1646771550928,0.26535087,2567.7,2566.8,1.44226]
[1646771551180,0.26535087,2567.7,2566.8,1.44838127]
[1646771551482,0.81460322,2567.6,2566.8,1.44838127]
[1646771551781,0.26535087,2567.5,2566.8,1.44838127]
[1646771551985,0.26535087,2567.5,2566.9,1.3105348]
[1646771552482,0.26535087,2567.5,2566.9,13.1105348]
[1646771552682,0.37126366,2567.9,2567.0,1.3106598]
[1646771552982,0.2658623,2567.8,2567.1,0.97413]
[1646771554283,0.2658623,2567.8,2567.2,1.31195088]
[1646771557937,0.2658623,2567.8,2567.1,0.3]
[1646771558138,0.2658623,2567.8,2567.2,1.31966364]
[1646771558781,0.2658623,2567.8,2567.2,2.29378364]
[1646771558980,0.2658623,2567.8,2567.2,0.97412]
[1646771559382,0.2658623,2567.8,2567.2,1.44212]
[1646771559783,0.2658623,2567.8,2567.3,1.3205104]
[1646771561386,0.2658623,2567.8,2567.3,13.8083104]
[1646771561586,0.2658623,2567.8,2567.5,11.8]
[1646771561791,0.2658623,2567.8,2567.6,12.268]
[1646771562436,0.2658623,2567.8,2567.6,13.268]
[1646771562634,0.2658623,2567.8,2567.6,0.468]
[1646771562835,0.2658623,2567.8,2567.4,1.0]
[1646771563031,0.2658623,2567.8,2567.1,0.62488451]
[1646771563032,0.2658623,2567.8,2567.2,0.97418]
[1646771563234,0.2658623,2567.8,2567.3,1.32585431]
[1646771563235,3.7658623,2567.8,2567.3,1.32585431]
[1646771563432,3.7658623,2567.8,2567.4,1.32585431]
[1646771563433,0.2658623,2567.7,2567.4,1.32585431]
[1646771563632,0.43364157,2567.2,2567.0,1.94835]
[1646771563832,0.43364157,2567.2,2567.1,1.32591035]
[1646771564439,0.43364157,2567.2,2567.1,13.81371035]
[1646771564642,0.37126366,2567.9,2567.3,12.1878]
[1646771564839,0.2486786,2567.8,2567.5,11.8]
[1646771565042,0.2486786,2567.8,2567.6,0.468]
[1646771565237,0.2486786,2567.8,2567.7,1.3]
[1646771565437,0.2486786,2567.8,2567.7,1.768]
[1646771568982,0.2486786,2567.8,2567.7,2.4]
[1646771569586,0.2486786,2567.8,2567.7,14.2]
[1646771569837,0.2486786,2567.8,2567.7,15.5878]
[1646771571236,0.2486786,2567.8,2567.7,3.7878]
[1646771571436,0.2486786,2567.8,2567.7,3.4]
[1646771573137,0.2486786,2567.8,2567.7,2.4]
[1646771573779,0.2486786,2567.8,2567.7,2.1]
[1646771573980,0.2486786,2567.8,2567.7,1.1]
[1646771574181,0.2486786,2567.8,2567.7,0.632]
[1646771579429,0.2486786,2567.8,2567.7,12.432]
[1646771579629,0.2486786,2567.8,2567.7,13.2]
[1646771579828,0.2486786,2567.8,2567.7,14.2]
[1646771580431,0.2486786,2567.8,2567.7,15.05102042]
[1646771581283,0.2486786,2567.8,2567.7,2.4]
[1646771581483,0.2486786,2567.8,2567.7,1.1]
[1646771581682,0.2486786,2567.8,2567.7,0.632]
[1646771583581,0.2486786,2567.8,2567.7,0.44755089]
[1646771584188,4.5,2567.7,2567.2,0.00108451]
[1646771584385,4.5,2567.7,2566.8,1.11530619]
[1646771584582,4.5,2567.7,2566.8,1.11422168]
[1646771584842,0.70668819,2567.5,2567.0,1.1]
[1646771585231,0.91221727,2567.5,2567.1,1.1]
[1646771585430,2.8339,2567.8,2567.1,1.1]
[1646771585431,0.20552908,2567.4,2567.1,1.1]
[1646771585633,0.20552908,2567.3,2567.2,2.48025717]
[1646771585831,0.70668819,2567.6,2567.2,2.48025717]
[1646771586034,0.91221727,2567.6,2567.2,1.1]
[1646771586234,0.91221727,2567.6,2567.0,1.1]
[1646771586435,0.20552908,2567.5,2567.2,1.1]
[1646771586637,0.20552908,2567.4,2567.2,1.1]
[1646771586936,0.20552908,2567.3,2567.2,1.1]
[1646771587136,0.20552908,2567.3,2567.2,2.49222748]
[1646771587338,0.20552908,2567.3,2567.2,3.85617618]
[1646771587836,0.20552908,2567.3,2567.2,3.96022748]
[1646771588037,0.20552908,2567.3,2567.2,2.96022748]
[1646771588242,0.20552908,2567.3,2567.2,2.49222748]
[1646771593129,0.20552908,2567.3,2567.2,14.29222748]
[1646771593330,0.20552908,2567.3,2567.2,3.49222748]
[1646771593931,0.20552908,2567.3,2567.2,2.49222748]
[1646771596191,0.20552908,2567.3,2567.2,1.1]
[1646771596990,0.20552908,2567.3,2566.7,1.11511612]
[1646771597191,0.70668819,2567.4,2567.2,1.1]
[1646771597491,0.15641634,2567.3,2567.2,1.1]
[1646771597689,0.70668819,2567.5,2567.2,2.53062489]
[1646771597890,0.70668819,2567.5,2567.2,1.1]
[1646771598091,0.70668819,2567.5,2567.3,1.1]
[1646771598290,0.15641634,2567.4,2567.3,1.1]
[1646771598696,0.86310453,2567.5,2567.3,1.1]
[1646771598893,0.86310453,2567.4,2567.3,1.1]
[1646771599091,0.70668819,2567.4,2567.3,1.1]
[1646771599291,0.86310453,2567.4,2567.3,1.1]
[1646771599932,0.15641634,2567.4,2567.3,1.1]
[1646771600134,0.70668819,2567.5,2567.4,1.1]
[1646771600538,0.70668819,2567.6,2567.4,1.1]
[1646771600938,0.8629256,2567.6,2567.4,1.1]
[1646771601138,0.15623741,2567.5,2567.4,1.1]
[1646771602137,0.15623741,2567.5,2567.2,1.1]
[1646771602338,0.15623741,2567.4,2567.2,1.1]
[1646771602539,0.70668819,2567.6,2567.2,1.1]
[1646771602540,0.15623741,2567.3,2567.2,1.1]
[1646771603588,0.15623741,2567.3,2567.2,0.89268655]
[1646771603991,0.15623741,2567.3,2567.2,4.39268655]
[1646771604190,0.15623741,2567.3,2567.2,2.33487056]
[1646771604389,0.15623741,2567.3,2567.2,3.33487056]
[1646771605088,0.15623741,2567.3,2567.2,4.60943935]
[1646771605287,0.15623741,2567.3,2567.2,3.60943935]
[1646771605490,0.15623741,2567.3,2567.2,4.60943935]
[1646771606696,0.15623741,2567.3,2567.2,3.80287056]
[1646771606893,0.15623741,2567.3,2567.2,3.33487056]
[1646771607094,0.15623741,2567.3,2567.2,2.33487056]
[1646771609832,0.70668819,2567.7,2567.2,0.89268655]
[1646771610035,0.70668819,2567.7,2567.4,0.89268655]
[1646771610235,0.81935754,2567.6,2567.5,0.89268655]
[1646771610933,0.81913442,2567.6,2567.5,0.89268655]
[1646771611184,0.11266935,2567.6,2567.5,0.89268655]
[1646771611584,0.11266935,2567.6,2567.5,0.2010762]
[1646771611781,2.06166935,2567.6,2567.5,0.2010762]
[1646771612186,5.5,2567.5,2566.8,0.01402608]
[1646771612382,0.70630158,2567.2,2566.9,2.06600981]
[1646771612586,0.70630158,2567.1,2566.9,0.56994767]
[1646771612786,1.47708514,2567.1,2566.9,0.56994767]
[1646771612988,0.11266935,2567.0,2566.9,0.56994767]
[1646771614387,1.08731935,2567.0,2566.9,0.56994767]
[1646771615229,1.08731935,2567.0,2566.4,0.00614771]
[1646771615529,0.97464,2566.9,2566.4,0.00614771]
[1646771615929,0.97464,2566.9,2566.6,0.56994767]
[1646771615930,0.09121506,2566.8,2566.6,0.56994767]
[1646771616334,0.79751664,2567.1,2566.7,0.56994767]
[1646771617033,5.5,2567.0,2566.2,0.00262155]
[1646771617338,0.70630158,2566.7,2566.2,1.4951591]
[1646771617536,0.09121506,2566.6,2565.8,0.00108451]
[1646771617735,0.09121506,2566.5,2566.4,0.01419719]
[1646771617936,17.3,2566.4,2565.2,4.21020494]
[1646771618136,17.3,2566.4,2565.3,1.46397035]
[1646771618137,3.0,2565.9,2565.3,1.46397035]
[1646771618336,3.0,2565.9,2564.8,1.33140239]
[1646771618337,11.8,2565.6,2565.4,0.96397035]
[1646771618584,0.97554,2565.4,2564.6,0.72838013]
[1646771618784,12.77554,2565.4,2564.6,0.72838013]
[1646771618985,12.77554,2565.4,2564.6,0.0192597]
[1646771619183,0.76323928,2565.0,2564.6,0.0192597]
[1646771619389,4.66559578,2565.0,2564.6,0.0192597]
[1646771619785,4.66559578,2565.0,2564.2,0.89806471]
[1646771619786,5.5,2564.9,2564.2,0.89806471]
[1646771619985,12.77559,2564.9,2564.2,0.89806471]
[1646771620184,0.97559,2564.9,2564.2,0.18894428]
[1646771621086,1.9515492,2564.7,2564.2,0.18894428]
[1646771621290,12.77586,2564.6,2564.2,0.18894428]
[1646771621489,0.97586,2564.6,2564.2,0.18894428]
[1646771622340,0.97586,2564.6,2564.3,0.00382601]
[1646771622341,0.6929359,2564.5,2564.3,0.00382601]
[1646771622531,3.620303,2564.5,2564.3,0.00382601]
[1646771623230,3.620303,2564.5,2564.2,0.18894428]
[1646771623431,3.620303,2564.5,2564.3,0.00382601]
[1646771623631,3.9031641,2564.6,2564.3,0.00382601]
[1646771623632,1.95165,2564.6,2564.3,0.00382601]
[1646771623831,1.95165,2564.6,2564.5,1.70142324]
[1646771624634,2.80565396,2564.6,2564.5,1.70142324]
[1646771625032,14.60565396,2564.6,2564.5,1.70142324]
[1646771625234,2.80565396,2564.6,2564.5,1.70142324]
[1646771625632,1.95165,2564.6,2564.5,1.70142324]
[1646771625834,0.97586,2564.6,2564.5,1.70142324]
[1646771626691,1.11376996,2564.9,2564.5,1.70142324]
[1646771626692,0.97548,2564.9,2564.5,1.70142324]
[1646771626889,0.9754548,2565.0,2564.5,1.70142324]
[1646771626890,0.2233,2565.1,2564.5,1.70142324]
[1646771627089,0.2233,2565.1,2564.5,2.16942324]
[1646771628088,0.2233,2565.1,2564.5,1.70142324]
[1646771628287,0.2233,2565.1,2564.7,0.00357193]
[1646771629287,0.2233,2565.1,2564.5,1.70142324]
[1646771629488,0.9754991,2564.9,2564.8,0.00357186]
[1646771629933,3.1497,2565.1,2564.8,0.00357186]
[1646771629934,0.2233,2565.1,2564.8,0.00357186]
[1646771630434,0.2233,2565.1,2564.5,2.16942324]
[1646771630634,2.8342,2565.3,2564.5,2.16942324]
[1646771630834,1.1928,2565.7,2565.0,0.71939667]
[1646771631036,1.1928,2565.7,2565.0,1.69445667]
[1646771631236,0.13819996,2565.8,2565.0,1.69445667]
[1646771631437,0.13819996,2565.8,2565.0,0.97506]
[1646771632036,0.13819996,2565.8,2565.3,0.00371818]
[1646771632242,1.11329996,2565.8,2565.3,0.00371818]
[1646771632437,0.77053428,2565.6,2565.3,0.00371818]
[1646771632836,0.77053428,2565.6,2564.9,0.00675084]
[1646771633037,0.13819996,2565.8,2564.9,0.00675084]
[1646771633237,0.58308639,2565.9,2565.3,0.00371814]
[1646771634282,14.33351279,2565.9,2565.5,0.00340123]
[1646771634486,14.63351279,2565.9,2565.5,0.00340123]
[1646771634888,11.8,2565.8,2565.5,0.00340123]
[1646771635087,12.77515,2565.8,2565.5,0.00340123]
[1646771635285,0.87748838,2565.4,2564.9,0.00675084]
[1646771635487,1.85281838,2565.4,2565.2,0.00596199]
[1646771635887,16.65281838,2565.4,2565.2,0.00596199]
[1646771636085,0.97531,2565.3,2565.2,0.00596199]
[1646771636486,1.9506358,2565.3,2564.6,0.00105823]
[1646771636685,1.9506358,2565.3,2565.2,0.00149051]
[1646771636886,0.97531,2565.3,2565.2,0.00149051]
[1646771637533,0.97531,2565.3,2564.6,0.00105823]
[1646771637534,1.9506198,2565.3,2564.6,0.00105823]
[1646771637730,1.9506198,2565.3,2564.5,1.70142324]
[1646771637931,1.9506198,2565.3,2565.1,0.00373042]
[1646771638132,4.0,2565.2,2564.5,1.53713581]
[1646771638330,1.9506198,2565.3,2564.5,1.53713581]
[1646771638331,0.97543,2565.0,2564.5,1.53713581]
[1646771638529,1.95087,2565.0,2564.5,1.53713581]
[1646771639333,2.25087,2565.0,2564.5,1.53713581]
[1646771639533,1.95087,2565.0,2564.5,1.53713581]
[1646771640333,1.82355982,2565.0,2564.5,1.53713581]
[1646771640730,1.82355982,2565.0,2564.2,0.18894428]
[1646771640731,5.5,2564.9,2564.2,0.18894428]
[1646771640938,0.97569,2564.7,2564.2,0.18894428]
[1646771641188,15.3,2564.6,2564.2,0.18894428]
[1646771641583,15.3,2564.6,2564.4,0.00179776]
[1646771641985,4.38288089,2564.5,2564.4,0.00179776]
[1646771642185,19.18288089,2564.5,2564.4,0.00179776]
[1646771642383,19.18288089,2564.5,2564.2,0.18894428]
[1646771642584,0.9757953,2564.6,2564.2,0.18894428]
[1646771642788,0.9757953,2564.6,2564.3,0.00178956]
[1646771642985,4.47569,2564.7,2564.3,0.00178956]
[1646771643187,0.97569,2564.7,2564.3,0.00178956]
[1646771643387,4.47569,2564.7,2564.3,0.00178956]
[1646771643583,4.47569,2564.7,2564.2,0.18894428]
[1646771643584,0.97569,2564.7,2564.2,0.18894428]
[1646771643985,0.97569,2564.7,2564.4,0.00178952]
[1646771644184,4.47569,2564.7,2564.4,0.00178952]
[1646771644584,0.97569,2564.7,2564.4,0.00178952]
[1646771644850,0.97569,2564.7,2564.2,0.18894428]
[1646771644851,4.47569,2564.7,2564.2,0.18894428]
[1646771645037,4.47569,2564.7,2564.4,0.00178949]
[1646771645237,0.97569,2564.7,2564.4,0.00178949]
[1646771645938,0.97569,2564.7,2564.2,0.18894428]
[1646771645939,0.97569,2564.7,2564.5,0.00684214]
[1646771646341,0.9755306,2564.8,2564.5,0.00684214]
[1646771646742,0.97545,2564.9,2564.5,0.00684214]
[1646771646950,4.9825196,2565.0,2564.5,0.00684214]
[1646771646951,2.731431,2565.0,2564.5,0.00684214]
[1646771647345,2.7276,2565.0,2564.5,0.00684214]
[1646771647743,2.7276,2565.0,2564.6,0.00383173]
[1646771647744,0.00383112,2565.0,2564.6,0.00383173]
[1646771648346,0.00383112,2565.0,2564.6,0.97912173]
[1646771648592,0.00383112,2565.0,2564.6,1.36692173]